bitfinex-derivatives/quotes_BTCF0:USTF0_20251230
["timestamp","ask_amount","ask_price","bid_price","bid_amount"]
[1767095203464,0.0113827,87965.0,87951.0,0.00017056]
[1767095203664,0.02825358,87964.0,87951.0,0.00017056]
[1767095203865,0.02825358,87963.0,87951.0,0.00017056]
[1767095204064,0.02825358,87962.0,87951.0,0.00017056]
[1767095204265,0.02825358,87961.0,87951.0,0.00017056]
[1767095204452,0.02825358,87960.0,87951.0,0.00017056]
[1767095204652,0.02825358,87959.0,87951.0,0.00017056]
[1767095204868,0.02825358,87958.0,87951.0,0.00017056]
[1767095205059,0.02821013,87957.0,87951.0,0.00017056]
[1767095205260,0.02821013,87956.0,87951.0,0.00017056]
[1767095205463,0.02821013,87955.0,87951.0,0.00017056]
[1767095205662,0.0113827,87965.0,87951.0,0.00017056]
[1767095207356,0.12328377,87970.0,87951.0,0.00017056]
[1767095208266,0.15368,87975.0,87955.0,0.0113839]
[1767095208466,0.11190177,87970.0,87951.0,0.01155496]
[1767095208671,0.11190177,87970.0,87953.0,0.0113841]
[1767095209470,0.11190177,87970.0,87951.0,0.00017056]
[1767095209869,0.11190177,87970.0,87957.0,0.0113836]
[1767095210266,0.11190177,87970.0,87959.0,0.0113833]
[1767095210669,0.15368,87975.0,87951.0,0.00017056]
[1767095211172,0.15368,87975.0,87964.0,0.0113827]
[1767095211673,0.15368,87975.0,87952.0,0.0113843]
[1767095213064,0.15368,87975.0,87951.0,0.00017056]
[1767095213065,0.15368,87975.0,87965.0,0.0113826]
[1767095213575,0.15368,87975.0,87962.0,0.011383]
[1767095213976,0.15368,87975.0,87951.0,0.00017056]
[1767095214276,0.15368,87975.0,87960.0,0.0113832]
[1767095214575,0.00017056,87979.0,87952.0,0.11367511]
[1767095214874,0.00017056,87979.0,87960.0,0.11190177]
[1767095215065,0.00017056,87979.0,87964.0,0.0113828]
[1767095215973,0.00017056,87979.0,87966.0,0.0113824]
[1767095216274,0.00017056,87979.0,87968.0,0.0113822]
[1767095217368,0.00017056,87979.0,87960.0,0.11190177]
[1767095217573,0.02805593,87978.0,87960.0,0.11190177]
[1767095217879,0.02805593,87977.0,87963.0,0.0113828]
[1767095218077,0.02805593,87976.0,87963.0,0.0113828]
[1767095218376,0.02805593,87975.0,87963.0,0.0113828]
[1767095218578,0.02805593,87974.0,87963.0,0.0113828]
[1767095218773,0.02805593,87973.0,87963.0,0.0113828]
[1767095218962,0.02805593,87972.0,87963.0,0.0113828]
[1767095219168,0.00017056,87979.0,87963.0,0.0113828]
[1767095219371,0.0280498,87978.0,87963.0,0.0113828]
[1767095219571,0.0280498,87977.0,87963.0,0.0113828]
[1767095219774,0.0280498,87976.0,87963.0,0.0113828]
[1767095219974,0.0280498,87975.0,87963.0,0.0113828]
[1767095220176,0.0280498,87974.0,87963.0,0.0113828]
[1767095220377,0.0280498,87973.0,87963.0,0.0113828]
[1767095220681,0.02804929,87972.0,87960.0,0.0113833]
[1767095220881,0.00017056,87979.0,87956.0,0.05730329]
[1767095221083,0.02804929,87978.0,87958.0,0.0113835]
[1767095221272,0.02804929,87977.0,87958.0,0.0113835]
[1767095221471,0.02804929,87976.0,87958.0,0.0113835]
[1767095221671,0.02804929,87975.0,87958.0,0.0113835]
[1767095221985,0.02804929,87974.0,87958.0,0.0113835]
[1767095222165,0.02804929,87973.0,87960.0,0.0113832]
[1767095222370,0.02804929,87972.0,87960.0,0.0113832]
[1767095222576,0.00017056,87979.0,87960.0,0.0113832]
[1767095222777,0.0280451,87978.0,87960.0,0.0113832]
[1767095223072,0.0280451,87977.0,87962.0,0.011383]
[1767095223269,0.0280451,87976.0,87962.0,0.011383]
[1767095223469,0.0280451,87975.0,87960.0,0.11190177]
[1767095223781,0.00017056,87979.0,87970.0,0.0113819]
[1767095224376,5.6e-07,87979.0,87970.0,0.0113819]
[1767095224579,0.09672,87985.0,87972.0,0.0113817]
[1767095224778,0.0280363,87984.0,87969.0,0.11190177]
[1767095224980,0.0280363,87983.0,87969.0,0.11190177]
[1767095225286,0.09672,87985.0,87969.0,0.11190177]
[1767095225480,0.02802983,87984.0,87975.0,0.0113814]
[1767095225687,0.02802983,87983.0,87975.0,0.0113814]
[1767095225985,0.09672,87985.0,87972.0,0.0113817]
[1767095226178,0.02802983,87984.0,87972.0,0.0113817]
[1767095226378,0.09672,87985.0,87972.0,0.0113817]
[1767095226579,0.02802484,87984.0,87972.0,0.0113817]
[1767095226786,0.09672,87985.0,87969.0,0.11190177]
[1767095226787,0.09672,87985.0,87974.0,0.0113814]
[1767095226982,0.02802474,87984.0,87974.0,0.0113814]
[1767095227183,0.09672,87985.0,87974.0,0.0113814]
[1767095232387,0.09672,87985.0,87910.0,0.12329147]
[1767095232388,0.0113825,87966.0,87910.0,0.12329147]
[1767095232592,0.11190177,87940.0,87911.0,0.0113896]
[1767095232795,0.15376,87939.0,87911.0,0.11366284]
[1767095232984,0.15376,87939.0,87919.0,0.0113885]
[1767095233187,0.15376,87939.0,87916.0,0.011389]
[1767095233188,0.1651461,87939.0,87916.0,0.011389]
[1767095233381,0.00017056,87936.0,87919.0,0.01155916]
[1767095233683,0.00017056,87936.0,87919.0,0.00017056]
[1767095233889,0.00017056,87936.0,87927.0,0.0113875]
[1767095234390,0.15376,87935.0,87927.0,0.0113875]
[1767095235484,0.15376,87935.0,87924.0,0.0113879]
[1767095235696,0.15376,87935.0,87919.0,0.00017056]
[1767095236095,0.15376,87935.0,87923.0,0.011388]
[1767095236581,0.11190177,87933.0,87919.0,0.00017056]
[1767095236892,0.11190177,87930.0,87919.0,0.00017056]
[1767095237089,0.05704,87929.0,87919.0,0.00017056]
[1767095245393,0.05704,87929.0,87921.0,0.0113883]
[1767095247298,0.05704,87928.0,87926.0,0.0113877]
[1767095248689,0.05704,87929.0,87919.0,0.00017056]
[1767095248888,0.05704,87929.0,87920.0,0.0113885]
[1767095249085,0.05704,87929.0,87926.0,0.0113876]
[1767095250711,0.05704,87930.0,87926.0,0.0113876]
[1767095252589,0.05704,87930.0,87928.0,0.0113874]
[1767095254100,0.05704,87931.0,87928.0,0.0113874]
[1767095254298,6e-08,87941.0,87921.0,0.0113883]
[1767095254601,0.58506728,87960.0,87921.0,0.0113883]
[1767095254602,0.05704,87943.0,87932.0,0.0113869]
[1767095255499,0.05704,87943.0,87934.0,0.0113866]
[1767095255700,0.00017056,87946.0,87934.0,0.0113866]
[1767095255900,0.05704,87945.0,87934.0,0.0113866]
[1767095256290,0.0113857,87942.0,87925.0,0.0113878]
[1767095256597,0.11190177,87940.0,87925.0,0.0113878]
[1767095256791,0.05704,87939.0,87921.0,0.09676]
[1767095257602,0.05704,87939.0,87928.0,0.0113873]
[1767095258796,0.05704,87938.0,87928.0,0.0113873]
[1767095259593,0.05704,87938.0,87925.0,0.0113878]
[1767095260302,0.05704,87938.0,87928.0,0.0113873]
[1767095260504,0.05704,87938.0,87921.0,0.09676]
[1767095261199,0.05704,87938.0,87922.0,0.0113881]
[1767095261790,0.05704,87939.0,87922.0,0.0113881]
[1767095262206,0.02804424,87938.0,87933.0,0.0113867]
[1767095262406,4e-08,87937.0,87933.0,0.0113867]
[1767095262605,0.05704,87939.0,87933.0,0.0113867]
[1767095263911,0.00017056,87946.0,87921.0,0.09676]
[1767095264105,0.05704,87945.0,87935.0,0.0113865]
[1767095264607,0.05704,87945.0,87927.0,0.05704]
[1767095265405,0.05704,87945.0,87931.0,0.011387]
[1767095265715,0.05704,87945.0,87928.0,0.0113874]
[1767095265909,0.05704,87945.0,87921.0,0.09676]
[1767095266907,0.05704,87945.0,87930.0,0.0113871]
[1767095267106,0.05704,87944.0,87921.0,0.09676]
[1767095267303,0.0807,87966.0,87931.0,0.11372294]
[1767095267504,0.1860667,87968.0,87948.0,0.0113847]
[1767095267505,0.09903357,87968.0,87948.0,0.0113847]
[1767095267807,0.05704,87965.0,87951.0,0.0113845]
[1767095268809,0.05704,87965.0,87954.0,0.011384]
[1767095270903,0.05704,87966.0,87957.0,0.0113836]
[1767095271409,0.05704,87966.0,87953.0,0.0113842]
[1767095273703,0.00017056,87967.0,87953.0,0.0113842]
[1767095273903,0.05721056,87967.0,87955.0,0.0113838]
[1767095274212,0.05721056,87967.0,87957.0,0.0113836]
[1767095279609,0.05721056,87967.0,87949.0,0.00017056]
[1767095280814,0.05721056,87967.0,87959.0,0.0113834]
[1767095281208,6e-08,87967.0,87963.0,0.0113829]
[1767095281413,6e-08,87967.0,87960.0,0.0113832]
[1767095282111,6e-08,87967.0,87961.0,0.0113831]
[1767095282310,0.011381,87978.0,87961.0,0.0113831]
[1767095282617,0.18168358,87977.0,87961.0,0.0113831]
[1767095282815,0.02788358,87976.0,87961.0,0.0113831]
[1767095283015,0.02788358,87975.0,87961.0,0.0113831]
[1767095283214,0.02788358,87974.0,87961.0,0.0113831]
[1767095283416,0.02788358,87973.0,87961.0,0.0113831]
[1767095283622,0.02788358,87972.0,87963.0,0.0113829]
[1767095283814,0.00017056,87976.0,87963.0,0.0113829]
[1767095284112,0.02788457,87975.0,87963.0,0.0113829]
[1767095284303,0.02788457,87974.0,87963.0,0.0113829]
[1767095284506,0.02788457,87973.0,87963.0,0.0113829]
[1767095284717,0.00017056,87976.0,87963.0,0.0113829]
[1767095284917,0.02788687,87975.0,87963.0,0.0113829]
[1767095285118,0.00017056,87976.0,87963.0,0.0113829]
[1767095285119,0.02788687,87974.0,87963.0,0.0113829]
[1767095285306,0.02788687,87973.0,87963.0,0.0113829]
[1767095285619,0.00017056,87976.0,87963.0,0.0113829]
[1767095285822,0.0278857,87975.0,87963.0,0.0113829]
[1767095286013,0.0278857,87974.0,87963.0,0.0113829]
[1767095286215,0.05704,87974.0,87968.0,0.0113822]
[1767095286613,6e-08,87976.0,87968.0,0.0113822]
[1767095286923,6e-08,87976.0,87970.0,0.0113819]
[1767095289424,6e-08,87976.0,87972.0,0.0113817]
[1767095290424,6e-08,87976.0,87968.0,0.0113822]
[1767095291623,6e-08,87976.0,87967.0,0.0113824]
[1767095292223,6e-08,87976.0,87969.0,0.0113821]
[1767095294528,6e-08,87976.0,87971.0,0.0113818]
[1767095294719,6e-08,87976.0,87973.0,0.0113816]
[1767095294922,6e-08,87976.0,87963.0,0.11367188]
[1767095295224,6e-08,87976.0,87969.0,0.0113821]
[1767095295521,6e-08,87976.0,87966.0,0.0113825]
[1767095296026,6e-08,87976.0,87968.0,0.0113822]
[1767095301318,6e-08,87976.0,87970.0,0.011382]
[1767095304434,6e-08,87976.0,87967.0,0.0683823]
[1767095311434,6e-08,87976.0,87969.0,0.0113821]
[1767095315435,6e-08,87976.0,87971.0,0.0113819]
[1767095315730,6e-08,87976.0,87973.0,0.0113816]
[1767095325834,0.09672,87994.0,87988.0,0.0113796]
[1767095326033,0.09672,87994.0,87974.0,0.057]
[1767095326034,0.02740726,87993.0,87985.0,0.01138]
[1767095326228,0.09672,87994.0,87985.0,0.01138]
[1767095326431,0.11183463,88000.0,87985.0,0.01138]
[1767095326630,0.09672,87997.0,87985.0,0.01138]
[1767095327425,0.09672,87997.0,87988.0,0.0113796]
[1767095327839,0.057,87997.0,87988.0,0.0113796]
[1767095328241,0.057,87997.0,87989.0,0.0113794]
[1767095328439,0.15599279,87998.0,87992.0,0.0113791]
[1767095329234,0.00227279,87998.0,87992.0,0.0113791]
[1767095329540,0.057,87997.0,87992.0,0.0113791]
[1767095329737,0.00227279,87998.0,87982.0,0.00017056]
[1767095330141,0.11183463,87992.0,87987.0,0.0113798]
[1767095330344,0.00227279,87998.0,87982.0,0.00017056]
[1767095331239,0.00227279,87998.0,87986.0,0.0113799]
[1767095331438,0.11183463,87996.0,87982.0,0.01155086]
[1767095331640,0.11183463,87992.0,87982.0,0.01155086]
[1767095331936,0.00227279,87998.0,87984.0,0.0113801]
[1767095332243,0.11183463,87994.0,87982.0,0.00017056]
[1767095332442,0.11183463,87994.0,87983.0,0.0113803]
[1767095333041,0.0113787,87996.0,87982.0,0.00017056]
[1767095333346,0.11183463,87992.0,87982.0,0.00017056]
[1767095333737,0.11183463,87992.0,87983.0,0.0113803]
[1767095335642,0.11183463,87992.0,87982.0,0.00017056]
[1767095335844,0.11183463,87992.0,87980.0,0.0113807]
[1767095337242,0.11183463,87992.0,87982.0,0.0113804]
[1767095337547,0.11183463,87992.0,87979.0,0.0113808]
[1767095337741,0.11183463,87989.0,87977.0,0.00017056]
[1767095337941,0.0113805,87982.0,87969.0,0.0113821]
[1767095338249,0.0113809,87979.0,87968.0,0.09672]
[1767095338546,0.0113809,87979.0,87964.0,0.057]
[1767095338747,0.11183463,87980.0,87965.0,0.0113826]
[1767095340944,0.11183463,87980.0,87964.0,0.05717056]
[1767095341450,0.00017056,87981.0,87969.0,0.0113821]
[1767095341850,0.11183463,87980.0,87969.0,0.0113821]
[1767095342049,0.00017056,87981.0,87969.0,0.0113821]
[1767095342356,0.11183463,87980.0,87969.0,0.0113821]
[1767095342947,0.16883463,87980.0,87969.0,0.0113821]
[1767095343255,0.16883463,87980.0,87966.0,0.0113825]
[1767095343754,0.16883463,87980.0,87964.0,0.05717056]
[1767095344556,0.16883463,87980.0,87965.0,0.0113826]
[1767095345750,0.11183463,87980.0,87965.0,0.0113826]
[1767095345949,0.16883463,87980.0,87967.0,0.0113823]
[1767095346150,0.057,87980.0,87964.0,0.06855326]
[1767095346351,0.16883463,87980.0,87964.0,0.06855326]
[1767095346550,0.16883463,87980.0,87966.0,0.0113825]
[1767095348853,0.057,87979.0,87966.0,0.0113825]
[1767095349860,0.057,87979.0,87964.0,0.05717056]
[1767095350049,0.057,87979.0,87969.0,0.0113821]
[1767095351760,0.11183463,87980.0,87969.0,0.0113821]
[1767095351960,0.05696,87978.0,87969.0,0.0113821]
[1767095353257,0.05696,87978.0,87964.0,0.05717056]
[1767095353258,0.05696,87978.0,87966.0,0.0113824]
[1767095353660,0.05696,87978.0,87965.0,0.0113826]
[1767095354860,0.05696,87977.0,87965.0,0.0113826]
[1767095357465,0.05696,87977.0,87968.0,0.0113822]
[1767095357858,0.05696,87976.0,87968.0,0.0113822]
[1767095358260,0.05696,87976.0,87964.0,0.00017056]
[1767095359162,0.05696,87976.0,87965.0,0.0113826]
[1767095359359,0.05696,87976.0,87952.0,0.1081043]
[1767095359360,0.11183463,87975.0,87952.0,0.1081043]
[1767095359561,0.11183463,87962.0,87947.0,0.0113849]
[1767095359760,0.0113815,87974.0,87932.0,0.01000148]
[1767095359761,0.0113843,87953.0,87935.0,0.0113864]
[1767095360066,0.0113843,87953.0,87933.0,0.09672]
[1767095360067,0.11183463,87950.0,87939.0,0.011386]
[1767095360265,0.11183463,87950.0,87941.0,0.0113857]
[1767095363279,0.11183463,87950.0,87938.0,0.01366044]
[1767095363562,0.11183463,87950.0,87940.0,0.0113858]
[1767095367268,0.11183463,87950.0,87939.0,0.011386]
[1767095367662,0.11183463,87950.0,87938.0,0.00227434]
[1767095368064,0.11183463,87950.0,87937.0,0.00017056]
[1767095368264,0.11183463,87947.0,87938.0,0.0113861]
[1767095368465,0.16883463,87947.0,87938.0,0.0113861]
[1767095369769,0.16883463,87947.0,87937.0,0.00017056]
[1767095370475,0.16883463,87947.0,87940.0,0.0113858]
[1767095370674,0.057,87947.0,87937.0,0.00017056]
[1767095370972,0.057,87947.0,87940.0,0.0113858]
[1767095371168,0.057,87947.0,87937.0,0.00017056]
[1767095371373,0.16883463,87947.0,87937.0,5.6e-07]
[1767095372162,0.16883463,87947.0,87939.0,0.011386]
[1767095372376,0.16883463,87947.0,87937.0,5.6e-07]
[1767095372871,0.057,87947.0,87937.0,5.6e-07]
[1767095373273,0.11183463,87950.0,87943.0,0.0113855]
[1767095373471,0.057,87949.0,87937.0,5.6e-07]
[1767095374173,0.057,87949.0,87943.0,0.0113855]
[1767095374471,0.057,87949.0,87937.0,5.6e-07]
[1767095375371,0.057,87949.0,87943.0,0.0113854]
[1767095375575,0.057,87949.0,87937.0,5.6e-07]
[1767095375772,0.057,87949.0,87943.0,0.0113854]
[1767095376067,0.057,87949.0,87937.0,5.6e-07]
[1767095376874,0.057,87949.0,87943.0,0.0113855]
[1767095377074,0.057,87949.0,87937.0,5.6e-07]
[1767095378073,0.057,87949.0,87926.0,0.09676]
[1767095378074,0.11183463,87947.0,87926.0,0.09676]
[1767095378259,0.11183463,87940.0,87926.0,0.09676]
[1767095378463,0.00017056,87954.0,87920.0,0.057]
[1767095378464,0.11183463,87936.0,87920.0,0.057]
[1767095378766,3e-08,87930.0,87927.0,0.0113875]
[1767095378963,0.09676,87940.0,87927.0,0.0113875]
[1767095378964,0.057,87933.0,87927.0,0.0113875]
[1767095379267,0.057,87933.0,87921.0,0.00017056]
[1767095379762,3e-08,87931.0,87921.0,0.00017056]
[1767095380366,3e-08,87931.0,87926.0,0.0113876]
[1767095380563,0.057,87933.0,87926.0,0.0113876]
[1767095380761,0.057,87933.0,87921.0,0.00017056]
[1767095381569,0.057,87933.0,87924.0,0.0113879]
[1767095381775,0.057,87933.0,87921.0,0.01155886]
[1767095382575,0.11198564,87931.0,87921.0,0.01155886]
[1767095382870,0.11198564,87931.0,87918.0,0.0113887]
[1767095383077,0.0113871,87931.0,87912.0,0.0113894]
[1767095383280,0.09676,87930.0,87914.0,0.0113892]
[1767095385072,0.09676,87930.0,87911.0,0.09676]
[1767095385269,0.05445018,87957.0,87915.0,0.11373717]
[1767095385579,0.0113844,87952.0,87927.0,0.0113875]
[1767095385880,0.02708548,87951.0,87933.0,0.0113868]
[1767095386179,0.057,87950.0,87933.0,0.0113868]
[1767095386379,0.02708548,87949.0,87933.0,0.01155736]
[1767095387276,0.18084548,87948.0,87936.0,0.0113863]
[1767095387581,0.02708548,87947.0,87936.0,0.0113863]
[1767095387878,0.02708548,87947.0,87934.0,0.0113866]
[1767095389181,0.02708548,87947.0,87937.0,0.0113863]
[1767095390281,0.02708548,87947.0,87933.0,0.01155726]
[1767095392264,0.02708548,87947.0,87936.0,0.0113864]
[1767095396380,0.02708548,87947.0,87933.0,0.00017056]
[1767095398487,0.03847048,87947.0,87933.0,0.00017056]
[1767095398685,0.0113853,87945.0,87933.0,0.00017056]
[1767095399279,0.1651449,87948.0,87933.0,0.00017056]
[1767095399481,0.0113852,87946.0,87933.0,0.00017056]
[1767095399682,0.02732248,87945.0,87933.0,0.00017056]
[1767095399986,0.0113852,87946.0,87933.0,0.00017056]
[1767095400181,0.0113854,87944.0,87933.0,0.00011056]
[1767095400388,0.011386,87940.0,87922.0,0.04554351]
[1767095400587,0.0683856,87943.0,87922.0,0.04554351]
[1767095400797,0.02732399,87942.0,87922.0,0.04554351]
[1767095400990,0.02732399,87941.0,87922.0,0.04554351]
[1767095401187,0.0683856,87943.0,87922.0,0.04554351]
[1767095401493,0.02732389,87942.0,87927.0,0.0113875]
[1767095401689,0.02732389,87941.0,87927.0,0.0113875]
[1767095401889,0.0683856,87943.0,87927.0,0.0113875]
[1767095402090,0.02732632,87942.0,87927.0,0.0113875]
[1767095402293,0.02732632,87941.0,87927.0,0.0113875]
[1767095402594,0.0683856,87943.0,87927.0,0.0113875]
[1767095402794,0.02732871,87942.0,87927.0,0.0113875]
[1767095402994,0.02732871,87941.0,87927.0,0.0113875]
[1767095403294,0.0683856,87943.0,87927.0,0.0113875]
[1767095403490,0.02733119,87942.0,87927.0,0.0113875]
[1767095403690,0.02733119,87941.0,87927.0,0.0113875]
[1767095403891,0.0683856,87943.0,87927.0,0.0113875]
[1767095404097,0.02733115,87942.0,87927.0,0.0113875]
[1767095404296,0.02733115,87941.0,87927.0,0.0113875]
[1767095404497,0.02733115,87940.0,87927.0,0.0113875]
[1767095404693,0.0683856,87943.0,87927.0,0.0113875]
[1767095404895,0.0273344,87942.0,87927.0,0.0113875]
[1767095405197,0.0273344,87941.0,87927.0,0.0113875]
[1767095405394,0.0273344,87940.0,87927.0,0.0113875]
[1767095405702,0.0273344,87940.0,87922.0,0.04554351]
[1767095407401,0.0273344,87940.0,87925.0,0.0113877]
[1767095408312,0.0273344,87940.0,87927.0,0.0113875]
[1767095409599,0.0273344,87940.0,87924.0,0.0113879]
[1767095410104,0.0273344,87940.0,87926.0,0.0113877]
[1767095412705,0.011386,87939.0,87923.0,0.011388]
[1767095413013,0.09676,87938.0,87925.0,0.0113878]
[1767095415824,0.1081462,87938.0,87922.0,0.04554351]
[1767095416112,0.02739765,87937.0,87922.0,0.0113882]
[1767095416298,0.057,87936.0,87914.0,0.09676]
[1767095416611,0.057,87936.0,87915.0,0.11372747]
[1767095417309,0.057,87936.0,87922.0,0.0113882]
[1767095421316,0.057,87936.0,87924.0,0.0113879]
[1767095421615,0.057,87936.0,87915.0,0.11372812]
[1767095421915,0.057,87936.0,87914.0,0.09676]
[1767095422310,0.057,87936.0,87924.0,0.0113879]
[1767095422510,0.057,87936.0,87915.0,0.11372812]
[1767095422712,0.057,87936.0,87914.0,0.09676]
[1767095423106,0.057,87936.0,87915.0,0.11373329]
[1767095423305,0.057,87936.0,87923.0,0.0113881]
[1767095423507,0.0683865,87936.0,87914.0,0.09676]
[1767095423706,0.02739253,87935.0,87914.0,0.09676]
[1767095423904,0.0683865,87936.0,87923.0,0.0113881]
[1767095424209,0.02739265,87935.0,87914.0,0.09676]
[1767095424405,0.0683865,87936.0,87914.0,0.09676]
[1767095424612,0.02739296,87935.0,87914.0,0.09676]
[1767095424810,0.0683865,87936.0,87914.0,0.09676]
[1767095425106,0.02739287,87935.0,87914.0,0.09676]
[1767095425307,0.0683865,87936.0,87914.0,0.09676]
[1767095425308,0.057,87936.0,87914.0,0.09676]
[1767095425507,0.02739401,87935.0,87923.0,0.011388]
[1767095425707,0.057,87936.0,87923.0,0.011388]
[1767095425908,0.02739401,87935.0,87923.0,0.011388]
[1767095426103,0.057,87936.0,87923.0,0.011388]
[1767095426310,0.02739344,87935.0,87923.0,0.011388]
[1767095426510,0.057,87936.0,87923.0,0.01111737]
[1767095426708,0.02739606,87935.0,87923.0,0.01111737]
[1767095426910,0.0683864,87936.0,87923.0,0.01111737]
[1767095427109,0.02739604,87935.0,87923.0,0.01111737]
[1767095427309,0.03878705,87934.0,87914.0,0.09676]
[1767095427510,0.0113867,87934.0,87914.0,0.09676]
[1767095427711,0.057,87936.0,87921.0,0.0113883]
[1767095428019,0.02740032,87935.0,87921.0,0.0113883]
[1767095428214,0.02740032,87934.0,87921.0,0.0113883]
[1767095428421,0.057,87936.0,87921.0,0.0113883]
[1767095428621,0.02739965,87935.0,87921.0,0.0113883]
[1767095428823,0.02739965,87934.0,87921.0,0.0113883]
[1767095429121,0.057,87936.0,87921.0,0.0113883]
[1767095429321,0.02739925,87935.0,87921.0,0.0113883]
[1767095429522,0.02739925,87934.0,87921.0,0.0113883]
[1767095429723,0.057,87936.0,87921.0,0.0113883]
[1767095429924,0.02739921,87935.0,87921.0,0.0113883]
[1767095430122,0.02739921,87934.0,87921.0,0.0113883]
[1767095430321,0.057,87936.0,87921.0,0.0113883]
[1767095430621,0.02739896,87935.0,87921.0,0.0113883]
[1767095430826,0.02739896,87934.0,87921.0,0.0113883]
[1767095431021,0.02739896,87933.0,87921.0,0.0113883]
[1767095431219,0.057,87936.0,87921.0,0.0113883]
[1767095431418,0.0113871,87931.0,87917.0,0.0113888]
[1767095431625,0.057,87930.0,87914.0,0.09676]
[1767095432119,0.057,87930.0,87920.0,0.0113884]
[1767095434820,0.057,87930.0,87917.0,0.0113888]
[1767095435011,0.057,87930.0,87919.0,0.0113886]
[1767095437028,0.057,87930.0,87914.0,0.09676]
[1767095439231,0.057,87930.0,87919.0,0.0113886]
[1767095439430,0.057,87930.0,87920.0,0.0113884]
[1767095439628,0.057,87930.0,87917.0,0.0113888]
[1767095439933,0.0113875,87928.0,87914.0,0.1081492]
[1767095440430,0.0113873,87929.0,87916.0,0.011389]
[1767095442532,0.057,87930.0,87916.0,0.011389]
[1767095444140,0.057,87930.0,87917.0,0.0113888]
[1767095445436,0.1689947,87930.0,87917.0,0.0113888]
[1767095447740,0.1803819,87930.0,87914.0,0.1081492]
[1767095448129,0.0113875,87928.0,87914.0,0.1081492]
[1767095448437,0.1689947,87930.0,87914.0,0.0113892]
[1767095449336,0.0113873,87929.0,87914.0,0.0113892]
[1767095449936,0.1689947,87930.0,87910.0,0.0113898]
[1767095450139,0.1803819,87930.0,87907.0,0.15376]
[1767095450341,0.1803819,87930.0,87909.0,0.11373717]
[1767095451239,0.1803819,87930.0,87914.0,0.0113892]
[1767095451839,0.1803819,87930.0,87907.0,0.15376]
[1767095451840,0.1233827,87924.0,87911.0,0.0113896]
[1767095452142,0.1119947,87920.0,87911.0,0.0113896]
[1767095452343,0.1119947,87920.0,87913.0,0.0113894]
[1767095452935,0.1119947,87920.0,87915.0,0.0113891]
[1767095453138,0.057,87924.0,87915.0,0.0113891]
[1767095456840,0.057,87924.0,87912.0,0.0113894]
[1767095457035,0.057,87924.0,87907.0,0.15376]
[1767095457237,0.1119947,87920.0,87907.0,0.15376]
[1767095457544,0.1119947,87920.0,87911.0,0.0113896]
[1767095457742,0.1233833,87920.0,87907.0,0.15376]
[1767095457936,0.1119947,87920.0,87907.0,0.1651501]
[1767095459031,0.1119947,87920.0,87909.0,0.0113899]
[1767095462446,0.057,87919.0,87911.0,0.0113896]
[1767095463851,0.057,87919.0,87908.0,0.01366502]
[1767095464647,0.057,87919.0,87910.0,0.0113897]
[1767095466952,0.057,87919.0,87908.0,0.00227512]
[1767095467947,0.1119947,87920.0,87908.0,0.00227512]
[1767095468667,0.1119947,87920.0,87913.0,0.0113894]
[1767095468867,0.057,87921.0,87913.0,0.0113894]
[1767095469564,0.01139,87909.0,87882.0,0.0113934]
[1767095469769,0.1119947,87902.0,87881.0,0.057]
[1767095469960,0.057,87901.0,87881.0,0.057]
[1767095470161,0.057,87901.0,87888.0,0.0113925]
[1767095470561,8.089e-05,87900.0,87885.0,0.0113929]
[1767095470764,8.089e-05,87900.0,87887.0,0.0113927]
[1767095471571,0.11207559,87900.0,87887.0,0.0113927]
[1767095472469,8.089e-05,87900.0,87887.0,0.0113927]
[1767095473268,8.089e-05,87900.0,87889.0,0.0113924]
[1767095473663,8.089e-05,87900.0,87882.0,0.0113933]
[1767095473865,8.089e-05,87900.0,87892.0,0.011392]
[1767095474368,8.089e-05,87900.0,87889.0,0.0113924]
[1767095475273,8.089e-05,87900.0,87891.0,0.0113922]
[1767095475766,8.089e-05,87900.0,87890.0,0.1119947]
[1767095475977,0.05704,87902.0,87890.0,0.1119947]
[1767095476266,0.05704,87903.0,87898.0,0.0113913]
[1767095476971,0.05704,87912.0,87893.0,0.1119947]
[1767095477174,0.05704,87912.0,87903.0,0.0113906]
[1767095477872,0.05704,87912.0,87905.0,0.0113904]
[1767095478070,0.05704,87912.0,87907.0,0.0113901]
[1767095478675,0.05704,87912.0,87900.0,0.00017066]
[1767095478870,0.05704,87912.0,87906.0,0.0113902]
[1767095479070,0.05704,87912.0,87908.0,0.01137]
[1767095479864,0.05704,87914.0,87908.0,0.02276]
[1767095485572,0.0968,87927.0,87908.0,0.01137]
[1767095485767,0.1111669,87922.0,87910.0,0.1119947]
[1767095486871,0.1111669,87922.0,87913.0,0.0113894]
[1767095487476,0.1111669,87922.0,87910.0,0.1233844]
[1767095487674,0.1111669,87922.0,87910.0,0.0113897]
[1767095487979,0.1111669,87922.0,87910.0,0.1233844]
[1767095490180,0.0541269,87922.0,87910.0,0.1233844]
[1767095491183,0.0541269,87922.0,87912.0,0.0113895]
[1767095496991,0.0541269,87922.0,87913.0,0.01137]
[1767095499492,0.0655151,87922.0,87913.0,0.01137]
[1767095499689,0.0541269,87922.0,87913.0,0.01128927]
[1767095499894,0.0541269,87922.0,87910.0,0.1233844]
[1767095500094,0.0541269,87922.0,87910.0,0.0113897]
[1767095501996,0.0541269,87922.0,87910.0,0.1233844]
[1767095504494,0.0541269,87922.0,87910.0,0.12338164]
[1767095504696,0.0541269,87922.0,87910.0,0.0113897]
[1767095504897,0.0541269,87922.0,87912.0,0.0113895]
[1767095509004,0.0541269,87922.0,87906.0,0.05704]
[1767095509005,0.0113884,87921.0,87906.0,0.05704]
[1767095509195,0.0113887,87919.0,87906.0,0.05704]
[1767095510405,0.0655152,87922.0,87906.0,0.05704]
[1767095510605,0.02751977,87921.0,87906.0,0.05704]
[1767095510806,0.0655152,87922.0,87906.0,0.05704]
[1767095511007,0.0275198,87921.0,87906.0,0.05704]
[1767095511303,0.0655152,87922.0,87906.0,0.05704]
[1767095511304,0.0655152,87922.0,87906.0,0.0684303]
[1767095511505,0.02752193,87921.0,87908.0,0.0113899]
[1767095511707,0.0541269,87922.0,87908.0,0.0113899]
[1767095512003,0.02752208,87921.0,87908.0,0.0113899]
[1767095512205,0.0541269,87922.0,87908.0,0.0113899]
[1767095512408,0.02752201,87921.0,87908.0,0.0113899]
[1767095512598,0.02752201,87920.0,87908.0,0.0113899]
[1767095512906,0.0541269,87922.0,87908.0,0.0113899]
[1767095513109,0.02752424,87921.0,87908.0,0.0113899]
[1767095513405,0.02752424,87920.0,87908.0,0.0113899]
[1767095513607,0.0541269,87922.0,87908.0,0.0113899]
[1767095513806,0.02752658,87921.0,87908.0,0.0113899]
[1767095514006,0.02752658,87920.0,87908.0,0.0113899]